Cogmind - Beta 11.1 @@@ ROGUE MODE // 2022.06.26 @ 19:24:08 Player: Espresso Result: Destroyed by S-10 Pest with Light Assault Rifle Performance ------------- Evolutions (1) 500 Regions Visited (3) 600 Robots Destroyed (7) 35 Value Destroyed (96) 96 Prototype IDs (0) 0 Alien Tech Used (0) 0 Bonus (200) 200 TOTAL SCORE: 1431 Bonus ------- Pacifist 200 Cogmind --------- Core Integrity 0/400 Matter 27/600 Energy 100/100 System Corruption 0% Temperature Cool (0) Movement Core (150) Ox2 Location -9/Mines Parts ------- > --- POWER (1) -------- (None) > --- PROPULSION (2) --- (None) > --- UTILITY (2) ------ Large Matter Pod Large Matter Pod > --- WEAPON (4) ------- Mini Grenade Launcher > --- INVENTORY (5) ---- Rocket Launcher Peak State ------------ > --- POWER ------------ (None) > --- PROPULSION ------- (None) > --- UTILITY ---------- Large Matter Pod Large Matter Pod > --- WEAPON ----------- Mini Grenade Launcher Mini Grenade Launcher > --- INVENTORY -------- (None) [Rating: 6] Favorites ----------- Power None Propulsion None Utility Large Matter Pod Storage Large Matter Pod Weapon Mini Grenade Launcher Launcher Mini Grenade Launcher Build | -11 -10 -9 -9 ------- Run | Scr Mat Mat Min Slots Evolved 2 | . . 2 . Power . | . . . . Propulsion . | . . . . Utility . | . . . . Weapon 2 | . . 2 . Parts Attached 4 | . . 4 . Power . | . . . . Engine . | . . . . Core . | . . . . Reactor . | . . . . Propulsion . | . . . . Treads . | . . . . Leg . | . . . . Wheel . | . . . . Hover . | . . . . Flight . | . . . . Utility 2 | . . 2 . Device . | . . . . Storage 2 | . . 2 . Processor . | . . . . Hackware . | . . . . Protection . | . . . . Artifact . | . . . . Weapon 2 | . . 2 . Energy Gun . | . . . . Energy Cannon . | . . . . Ballistic Gun . | . . . . Ballistic Cannon . | . . . . Launcher 2 | . . 2 . Special Weapon . | . . . . Impact Weapon . | . . . . Slashing Weapon . | . . . . Piercing Weapon . | . . . . Special Melee Weapon . | . . . . Unidentified Prototypes . | . . . . Parts Lost 1 | . . 1 . Power . | . . . . Propulsion . | . . . . Utility . | . . . . Weapon 1 | . . 1 . Highest Loss Streak 1 | . . 1 . To Critical Strikes . | . . . . Average Slot Usage (%) 27 | . . 27 33 Storage 18 | . . 19 22 Launcher 8 | . . 8 11 Naked Turns 84 | . 68 16 . Heaviest Build 8 | . . 8 7 Greatest Support 3 | 3 3 3 3 Greatest Overweight (x) 2 | . . 2 2 Average Overweight (x) 1 | . . 1 2 Largest Inventory Capacity 5 | 5 5 5 5 Average Capacity 5 | 5 5 5 5 Most Carried 1 | . . . 1 Average Carried . | . . . . Final Capacity 5 | 5 5 5 5 Final Carried 1 | . . . 1 Class Distribution -------------------- 100% | Mutant Dominant Class ---------------- Mutant | -10/Materials Mutant | -9/Materials Mutant | -9/Mines Resources | -11 -10 -9 -9 ----------- Run | Scr Mat Mat Min Matter Collected 137 | 78 . 41 18 Remotely . | . . . . Salvage Created 51 | . . 51 . Parts 15 | . . 15 . Haulers Intercepted . | . . . . Recyclers Shooed . | . . . . Parts Field Recycled . | . . . . Retrieved Matter . | . . . . Parts Self-Destructed . | . . . . Prevented . | . . . . Kills | -11 -10 -9 -9 ------- Run | Scr Mat Mat Min Combat Hostiles Destroyed 3 | . . 3 . AOE 3 | . . 3 . Classes Destroyed 3 | . . 3 . Worker 1 | . . 1 . Builder 3 | . . 3 . Swarmer 3 | . . 3 . Best Kill Streak 6 | . . 6 . Combat Bots Only 3 | . . 3 . Max Kills in Single Turn 2 | . . 2 . Gunslinging . | . . . . Exploded 2 | . . 2 . Melee . | . . . . Uniques/NPCs Destroyed . | . . . . Combat | -11 -10 -9 -9 -------- Run | Scr Mat Mat Min Damage Taken 694 | . 177 459 58 Core 579 | . 177 359 43 Absorbed by Shields . | . . . . Core Remaining (%) 64 | 100 29 . . Volleys Fired 18 | . . 18 . Largest 1 | . . 1 . Hottest 30 | . . 30 . Shots Fired 18 | . . 18 . Gun . | . . . . Cannon . | . . . . Launcher 18 | . . 18 . Special . | . . . . Kinetic . | . . . . Thermal . | . . . . Explosive 18 | . . 18 . Electromagnetic . | . . . . Robot Hit Streak 3 | . . 3 . Robot Miss Streak 1 | . . 1 . Penetration Max . | . . . . Secondary Targets . | . . . . Shots Hit Robots 4 | . . 4 . Core Hits 10 | . 1 9 . Critical Kills . | . . . . Critical Parts Destroyed . | . . . . Critical Strikes . | . . . . Melee Attacks . | . . . . Impact . | . . . . Slashing . | . . . . Piercing . | . . . . Sneak Attacks . | . . . . Combat Hostiles . | . . . . Follow-up Attacks . | . . . . Damage Inflicted 453 | . 13 440 . Guns . | . . . . Cannons . | . . . . Explosions 440 | . . 440 . Melee . | . . . . Ramming 13 | . 13 . . Kinetic . | . . . . Thermal . | . . . . Explosive 440 | . . 440 . Electromagnetic . | . . . . Impact . | . . . . Slashing . | . . . . Piercing . | . . . . Highest Corruption . | . . . . Average Corruption . | . . . . Corruption Purged . | . . . . Corruption Blocked . | . . . . Overload Shots . | . . . . Overflow Damage . | . . . . Projectiles . | . . . . Explosions . | . . . . Melee . | . . . . Knockbacks . | . . . . Impact . | . . . . Kinetic . | . . . . Secondary . | . . . . Self-Inflicted Damage 96 | . 6 90 . Shots 3 | . . 3 . Rammed 2 | . 2 . . Targets Rammed 2 | . 2 . . Kicked . | . . . . Crushed . | . . . . Highest Temperature . | . . . . Average Temperature . | . . . . Received Heat Transfer 153 | . 72 81 . Siege Activations . | . . . . Robots Corrupted . | . . . . Combat Hostiles . | . . . . Parts Fried . | . . . . Impact Corruptions . | . . . . Robots Melted . | . . . . Combat Hostiles . | . . . . Parts Melted . | . . . . Heat Transferred . | . . . . Parts Sabotaged . | . . . . Parts Stolen . | . . . . Parts Stripped . | . . . . Power Chain Reactions . | . . . . Missiles Intercepted . | . . . . Alert | -11 -10 -9 -9 ------- Run | Scr Mat Mat Min Peak Influence 427 | . 75 427 162 Initial 162 | . . 31 162 Average 163 | . 46 212 162 Maximum Alert Level 2 | . . 2 . Low Security (%) 81 | 100 100 45 100 Level 1 8 | . . 24 . Level 2 10 | . . 29 . Level 3 . | . . . . Level 4 . | . . . . Level 5 . | . . . . High Security . | . . . . Max Security . | . . . . Squads Dispatched 2 | . 1 1 . Investigation 1 | . 1 . . Extermination . | . . . . Reinforcement 1 | . . 1 . Assault . | . . . . Garrison . | . . . . Intercept . | . . . . Searches Triggered . | . . . . Construction Impeded . | . . . . Haulers Reinforced . | . . . . Active Scanning Responses . | . . . . Cargo Convoy Interrupts . | . . . . Stealth | -11 -10 -9 -9 --------- Run | Scr Mat Mat Min Distress Signals 2 | . 2 . . Communications Jammed . | . . . . Distress Signals . | . . . . Times Spotted 22 | . 8 10 4 Peak Tracking Total 6 | . 6 6 4 Tactical Retreats 1 | . 1 . . Traps | -11 -10 -9 -9 ------- Run | Scr Mat Mat Min Traps Triggered 2 | . 2 . . Indirectly . | . . . . Trap Hack Attempts . | . . . . Triggered . | . . . . Disarmed . | . . . . Reprogrammed . | . . . . Reused . | . . . . Traps Extracted . | . . . . Installed . | . . . . Triggered . | . . . . Machines | -11 -10 -9 -9 ---------- Run | Scr Mat Mat Min Machines Disabled 5 | . . 5 . Max in Single Turn 1 | . . 1 . Machines Sabotaged . | . . . . Garrisons Compromised . | . . . . Overloaded Fab Kills . | . . . . Hacking | -11 -10 -9 -9 --------- Run | Scr Mat Mat Min Machines Accessed . | . . . . Terminals . | . . . . Fabricators . | . . . . Repair Stations . | . . . . Recycling Units . | . . . . Scanalyzers . | . . . . Garrison Access . | . . . . Total Hacks . | . . . . Successful . | . . . . Failed . | . . . . Catastrophic . | . . . . Database Lockouts . | . . . . Manual . | . . . . Terminals . | . . . . Fabricators . | . . . . Repair Stations . | . . . . Recycling Units . | . . . . Scanalyzers . | . . . . Garrison Access . | . . . . Terminal Hacks . | . . . . Fabricator Hacks . | . . . . Repair Station Hacks . | . . . . Recycling Unit Hacks . | . . . . Scanalyzer . | . . . . Garrison Access Hacks . | . . . . Unauthorized Hacks . | . . . . Terminals . | . . . . Fabricators . | . . . . Repair Stations . | . . . . Recycling Units . | . . . . Scanalyzers . | . . . . Garrison Access . | . . . . Data Cores Recovered . | . . . . Used . | . . . . Hacking Detections . | . . . . Full Trace Events . | . . . . Feedback Events . | . . . . Feedback Blocked . | . . . . Robot Schematics Acquired . | . . . . Robots Built . | . . . . Authchips . | . . . . Time . | . . . . Total Robot Build Rating . | . . . . Part Schematics Acquired . | . . . . Parts Built . | . . . . Authchips . | . . . . Time . | . . . . Total Part Build Rating . | . . . . Parts Repaired . | . . . . Time . | . . . . Parts Recycled . | . . . . Recycled Matter . | . . . . Retrieved Matter . | . . . . Retrieved Components . | . . . . Parts Scanalyzed . | . . . . Part Schematics Acquired . | . . . . Parts Damaged . | . . . . Bothacking | -11 -10 -9 -9 ------------ Run | Scr Mat Mat Min Used RIF Installer . | . . . . Robots Hacked . | . . . . Non-combat . | . . . . Combat . | . . . . Robot Hacks Applied . | . . . . Relay Couplers Released . | . . . . Fabnet Peak Effective % . | . . . . Robots Rewired . | . . . . Allies Hacked . | . . . . Hacks Repelled . | . . . . Allies | -11 -10 -9 -9 -------- Run | Scr Mat Mat Min Total Allies . | . . . . Largest Group . | . . . . Highest-Rated Group . | . . . . Highest-Rated Ally . | . . . . Total Orders . | . . . . Ally Attacks . | . . . . Total Damage . | . . . . Kills . | . . . . Allies Corrupted . | . . . . Allies Melted . | . . . . Intel | -11 -10 -9 -9 ------- Run | Scr Mat Mat Min Robot Analysis Total . | . . . . Derelict Logs Recovered . | . . . . Drone Launches . | . . . . Drone Recoveries . | . . . . Exploration | -11 -10 -9 -9 ------------- Run | Scr Mat Mat Min Turns Passed 572 | 10 68 198 296 Spaces Moved 492 | 20 131 146 195 Core 492 | 20 131 146 195 Treads . | . . . . Legs . | . . . . Wheels . | . . . . Hover . | . . . . Flight . | . . . . Fastest Speed 50 | 50 50 50 150 Average Speed 106 | 50 50 107 150 Slowest Speed 150 | 50 50 150 150 Overloaded Moves . | . . . . Propulsion Burnouts . | . . . . Robots Hopped . | . . . . Cave-ins Triggered . | . . . . Exploration Rate (%) 28 | 3 39 25 46 Regions Visited 3 Branch Regions 1 Pre-discovered Areas . | . . . . Known Exits Taken . | . . . . Unknown Exits Taken 3 | 1 1 1 . Scrap Searched 1 | . . . 1 Spaces Dug . | . . . . Terrain Destroyed 71 | . . 71 . Melee . | . . . . Projectile . | . . . . AOE 71 | . . 71 . Terrain Rammed . | . . . . Walls Destroyed . | . . . . Machines Disabled . | . . . . Actions | -11 -10 -9 -9 --------- Run | Scr Mat Mat Min Total 517 | 19 132 167 199 Wait 3 | . . . 3 Move 489 | 19 130 145 195 Hop . | . . . . Pick Up 1 | . . . 1 Fast Attach 4 | . . 4 . Attach . | . . . . Detach . | . . . . Swap . | . . . . Drop . | . . . . Fire 18 | . . 18 . Melee . | . . . . Ram 2 | . 2 . . Kick . | . . . . Crush . | . . . . Escape Stasis . | . . . . Rewire . | . . . . Trap . | . . . . Miscellaneous . | . . . . Route ------- -11/Scrapyard -10/Materials (discovered 2 exits: [*Mat] / [*Min]) -9/Materials -9/Mines History --------- Turn | Location | Event 3 | -11/Scrapyard | Discovered new exit (range 15) 11 | -11/Scrapyard | Entered Materials 41 | -10/Materials | Discovered new exit (range 12) 61 | -10/Materials | Core integrity fell below 50% 72 | -10/Materials | Discovered new exit (range 13) 79 | -10/Materials | Entered another Materials area 79 | -9/Materials | Evolved 2 slots: Weapon x2 188 | -9/Materials | Core integrity fell below 50% 242 | -9/Materials | Core integrity fell below 20% 262 | -9/Materials | Discovered new exit (range 11) 277 | -9/Materials | Entered Mines 315 | -9/Mines | Build established: Mutant 573 | -9/Mines | Destroyed by S-10 Pest with Light Assault Rifle Last Messages --------------- U-05 Engineer builds a Wall. Acquired 14 matter. U-05 Engineer builds a Door. R-06 Scavenger collects Sml. Matter Pod. The unstable cave ceiling collapses. U-05 Engineer lays Concrete. ALERT: Hostiles spotted, dispatching reinforcements to Terminal M006. Acquired Mni. Grenade Launcher. EXIT=FOUND Mni. Grenade Launcher destroyed. LOCATION=UNKNOWN GOAL=ESCAPE Something is scanning the area. Searching scrap... Found Rocket Launcher. Found Beam Rifle. Found 18 Matter. Acquired 18 matter. Acquired Rocket Launcher. K-01 Serf collects debris. Map ----- +----------------------------------------------------+ | #### #### #??????????????? | | #?# #####??????????? | | #?## #??????????? | | # ##??## ###### ### #??????????? | | ## ##????# #???# #??# #??????????? | | ## ##????# ##### #### #??????????? | | # ##???## #??????????? | | #????# ########### #??????????? | | #????###?????????# [#??????????? | | # ##???????????????## ##?????????? | | # ###????????????????# ##????????? | | ## ##??????????????????# #####????? | | ?####???????????????????# ##???? | | ????????????????????????## """ #???? | | ?????????????????????????# """ #???? | | ?????????????????????????## """ #???? | | ??????????????????????????# #???? | | ??????????????????????????## ### #???? | | ???????????????????????????# #?? #???? | | ??????????????????######???# #??? #???? | | ???????????????#### s #### ### #???? | | ?????????????# s #???? | | ????????????????? """ #???? | | ?????????????????# """ s #######???? | | ?????????????????# """ #?????????? | | ?????????????????# s @ ##?????????? | | ?????????????????## ## ##??????????? | | ??????????????????###??# ##???????????? | | ???????????????????????# #????????????? | | ???????????????????????# #????????????? | | ???????????????????????# #????????????? | | ???????????????????????# #????????????? | | ??????????????????????? #????????????? | | ??????????????????????? ????????????? | | ?????????????????????? ????????????? | | ??????????????????????# ????????????? | | ??????????????????????#### ????????????? | | ??????????????????????????#????????????? | | ???????????????????????????????????????? | | ???????????????????????????????????????? | | ???????????????????????????????????????? | | ???????????????????????????????????????? | | ???????????????????????????????????????? | | ???????????????????????????????????????? | | ???????????????????????????????????????? | | ???????????????????????????????????????? | | ???????????????????????????????????????? | | ???????????????????????????????????????? | | ???????????????????????????????????????? | | ???????????????????????????????????????? | +----------------------------------------------------+ Best States ------------- Heat Dissipation 28 Energy Generation 5 Energy Capacity 100 Matter Stores 183 Matter Capacity 600 Sight Range 16 Terrain Scan Density 10 Evasion (%) 50 Item Schematics ----------------- None Robot Schematics ------------------ None Fabricated ------------ Nothing Alien Tech Used ----------------- None Achievements -------------- None Challenges ------------ None Game ------ Seed PoweredSeismicThermoblaster Manual? 0 Play Time 00:03:46 Cumulative 2.0 hours Start 2022.06.26 @ 19:20:32 End 2022.06.26 @ 19:24:08 Sessions 1 Manual Loads 0 Difficulty Rogue Special Mode None Game No. 14 Rogue 14 Adventurer 0 Explorer 0 Win Type - Total 0 Types 0/0/0/0/0/0/0/0/0 Lore% 5 Gallery% 10 Achievement% 16 Wizard Run 0 Options --------- ASCII 0 Keyboard 0 Movement Numpad Keybinds 0 Fullscreen 1 Font 24/Terminus Map View 76x50 Tactical HUD 0 Map Filters NONE Filters NONE Steam 1 RUN: f3d0ff1c-2975-4b10-8f87-0054810000c4